[Event "Titled Tuesday Blitz April 12 Late 2022"]
[White "Yedidia, Daniel"]
[Black "Miszler, Levente"]
[WhiteFideId "30905907"]
[BlackFideId "763276"]
[WhiteElo "2610"]
[BlackElo "1966"]
[Result "1-0"]
[Round "03"]
[TimeControl "180+1"]
[Date "2022.04.13"]
[WhiteClock "0:00:03"]
[BlackClock "0:00:12"]

1. d4 {[%clk 0:03:00]}  Nf6 {[%clk 0:02:58]} 2. c4 {[%clk 0:03:00]}  e6 {[%clk 0:02:57]} 3. Nc3 {[%clk 0:03:00]}  d5 {[%clk 0:02:57]} 4. cxd5 {[%clk 0:03:00]}  exd5 {[%clk 0:02:57]} 5. Bg5 {[%clk 0:03:00]}  Be7 {[%clk 0:02:57]} 6. e3 {[%clk 0:03:01]}  c6 {[%clk 0:02:57]} 7. Bd3 {[%clk 0:03:01]}  h6 {[%clk 0:02:56]} 8. Bh4 {[%clk 0:03:01]}  Be6 {[%clk 0:02:57]} 9. Nge2 {[%clk 0:03:01]}  Nbd7 {[%clk 0:02:57]} 10. Nf4 {[%clk 0:03:01]}  O-O {[%clk 0:02:56]} 11. O-O {[%clk 0:03:01]}  Bd6 {[%clk 0:02:56]} 12. Nxe6 {[%clk 0:02:59]}  fxe6 {[%clk 0:02:57]} 13. f3 {[%clk 0:02:59]}  e5 {[%clk 0:02:55]} 14. Bc2 {[%clk 0:02:50]}  Qc7 {[%clk 0:02:43]} 15. h3 {[%clk 0:02:45]}  Rae8 {[%clk 0:02:42]} 16. dxe5 {[%clk 0:02:39]}  Bxe5 {[%clk 0:02:36]} 17. e4 {[%clk 0:02:39]}  Qb6+ {[%clk 0:02:23]} 18. Bf2 {[%clk 0:02:29]}  Qxb2 {[%clk 0:02:23]} 19. Na4 {[%clk 0:02:02]}  Qxa1 {[%clk 0:02:18]} 20. Qxa1 {[%clk 0:01:59]}  Bxa1 {[%clk 0:02:19]} 21. Rxa1 {[%clk 0:02:00]}  dxe4 {[%clk 0:02:16]} 22. fxe4 {[%clk 0:01:59]}  Nxe4 {[%clk 0:02:16]} 23. Bxa7 {[%clk 0:01:59]}  b5 {[%clk 0:01:57]} 24. Nb2 {[%clk 0:01:52]}  Nec5 {[%clk 0:01:54]} 25. a4 {[%clk 0:01:42]}  b4 {[%clk 0:01:50]} 26. Nd3 {[%clk 0:01:34]}  Nxd3 {[%clk 0:01:14]} 27. Bxd3 {[%clk 0:01:35]}  c5 {[%clk 0:01:15]} 28. Bc4+ {[%clk 0:01:22]}  Kh8 {[%clk 0:01:13]} 29. Rd1 {[%clk 0:01:21]}  Re7 {[%clk 0:01:05]} 30. Bd5 {[%clk 0:00:54]}  Nf6 {[%clk 0:01:00]} 31. Bxc5 {[%clk 0:00:51]}  Nxd5 {[%clk 0:01:00]} 32. Rxd5 {[%clk 0:00:48]}  Re1+ {[%clk 0:01:00]} 33. Kh2 {[%clk 0:00:49]}  Rb8 {[%clk 0:00:58]} 34. Rd7 {[%clk 0:00:31]}  b3 {[%clk 0:00:42]} 35. Bd4 {[%clk 0:00:31]}  Rg8 {[%clk 0:00:23]} 36. Rb7 {[%clk 0:00:29]}  Rd1 {[%clk 0:00:23]} 37. Bc3 {[%clk 0:00:17]}  Rb1 {[%clk 0:00:15]} 38. a5 {[%clk 0:00:18]}  Kh7 {[%clk 0:00:11]} 39. a6 {[%clk 0:00:18]}  h5 {[%clk 0:00:11]} 40. a7 {[%clk 0:00:17]}  Rd1 {[%clk 0:00:06]} 41. Rb8 {[%clk 0:00:14]}  Rdd8 {[%clk 0:00:06]} 42. a8=Q {[%clk 0:00:09]}  Rxb8 {[%clk 0:00:06]} 43. Qe4+ {[%clk 0:00:08]}  g6 {[%clk 0:00:06]} 44. Qe7+ {[%clk 0:00:07]}  Kh6 {[%clk 0:00:07]} 45. Bd2+ {[%clk 0:00:06]}  g5 {[%clk 0:00:07]} 46. Qf6+ {[%clk 0:00:03]}  Rg6 {[%clk 0:00:05]} 47. Bxg5+ {[%clk 0:00:02]}  Kh7 {[%clk 0:00:05]} 48. Qf7+ {[%clk 0:00:02]}  Rg7 {[%clk 0:00:06]} 49. Qxh5+ {[%clk 0:00:02]}  Kg8 {[%clk 0:00:06]} 50. Bf6 {[%clk 0:00:02]}  b2 {[%clk 0:00:06]} 51. Qd5+ {[%clk 0:00:03]}  Rf7 {[%clk 0:00:05]} 52. Qg5+ {[%clk 0:00:03]}  Kf8 {[%clk 0:00:05]} 53. Bxb2 {[%clk 0:00:04]}  Rxb2 {[%clk 0:00:05]} 54. Qd8+ {[%clk 0:00:04]}  Kg7 {[%clk 0:00:05]} 55. Qd4+ {[%clk 0:00:05]}  Kg8 {[%clk 0:00:06]} 56. Qxb2 {[%clk 0:00:05]}  Rg7 {[%clk 0:00:06]} 57. Qf2 {[%clk 0:00:04]}  Rb7 {[%clk 0:00:06]} 58. g4 {[%clk 0:00:04]}  Rc7 {[%clk 0:00:06]} 59. h4 {[%clk 0:00:04]}  Rc3 {[%clk 0:00:06]} 60. Qf5 {[%clk 0:00:02]}  Rc5 {[%clk 0:00:06]} 61. Qxc5 {[%clk 0:00:02]}  Kf7 {[%clk 0:00:06]} 62. Qd6 {[%clk 0:00:02]}  Kg7 {[%clk 0:00:07]} 63. Qe6 {[%clk 0:00:02]}  Kh8 {[%clk 0:00:08]} 64. Qe7 {[%clk 0:00:03]}  Kg8 {[%clk 0:00:08]} 65. Kg3 {[%clk 0:00:03]}  Kh8 {[%clk 0:00:09]} 66. Kf4 {[%clk 0:00:03]}  Kg8 {[%clk 0:00:10]} 67. Kf5 {[%clk 0:00:03]}  Kh8 {[%clk 0:00:11]} 68. Kg6 {[%clk 0:00:03]}  Kg8 {[%clk 0:00:12]} 69. Qe8# {[%clk 0:00:03]} 1-0


[Site "https://www.chess.com"]

[Event "Titled Tuesday Blitz April 12 Late 2022"]
[White "Afanasiev, Nikita"]
[Black "Fernandez Siles, Luis"]
[WhiteFideId "24183555"]
[BlackFideId "2209420"]
[WhiteElo "2507"]
[BlackElo "2212"]
[Result "0-1"]
[Round "04"]
[TimeControl "180+1"]
[Date "2022.04.13"]
[WhiteClock "0:01:23"]
[BlackClock "0:00:28"]

1. d4 {[%clk 0:03:00]}  Nf6 {[%clk 0:02:58]} 2. c4 {[%clk 0:03:00]}  g6 {[%clk 0:02:58]} 3. Nc3 {[%clk 0:02:59]}  Bg7 {[%clk 0:02:58]} 4. h3 {[%clk 0:02:56]}  O-O {[%clk 0:02:56]} 5. g4 {[%clk 0:02:54]}  d5 {[%clk 0:02:40]} 6. g5 {[%clk 0:02:39]}  Ne4 {[%clk 0:02:40]} 7. Nf3 {[%clk 0:02:38]}  Nxc3 {[%clk 0:02:36]} 8. bxc3 {[%clk 0:02:37]}  c5 {[%clk 0:02:36]} 9. e3 {[%clk 0:02:35]}  Nc6 {[%clk 0:02:33]} 10. Rb1 {[%clk 0:02:31]}  e5 {[%clk 0:02:26]} 11. cxd5 {[%clk 0:02:28]}  Qxd5 {[%clk 0:02:20]} 12. c4 {[%clk 0:02:27]}  Qd6 {[%clk 0:02:16]} 13. d5 {[%clk 0:02:26]}  Ne7 {[%clk 0:02:11]} 14. Nd2 {[%clk 0:02:24]}  Bf5 {[%clk 0:01:44]} 15. Rxb7 {[%clk 0:02:20]}  e4 {[%clk 0:01:39]} 16. Bg2 {[%clk 0:02:17]}  f6 {[%clk 0:01:10]} 17. gxf6 {[%clk 0:02:08]}  Bxf6 {[%clk 0:01:10]} 18. Nxe4 {[%clk 0:02:02]}  Bxe4 {[%clk 0:01:10]} 19. Bxe4 {[%clk 0:02:02]}  Bh4 {[%clk 0:01:11]} 20. O-O {[%clk 0:01:56]}  Bxf2+ {[%clk 0:00:40]} 21. Rxf2 {[%clk 0:01:53]}  Rxf2 {[%clk 0:00:40]} 22. Kxf2 {[%clk 0:01:48]}  Qh2+ {[%clk 0:00:40]} 23. Ke1 {[%clk 0:01:46]}  Rf8 {[%clk 0:00:37]} 24. Rb2 {[%clk 0:01:25]}  Qg1+ {[%clk 0:00:30]} 25. Kd2 {[%clk 0:01:24]}  Rf2+ {[%clk 0:00:30]} 26. Kc3 {[%clk 0:01:23]}  Qxd1 {[%clk 0:00:28]} 27. Rxf2 {[%clk 0:01:23]}  Qxc1+ {[%clk 0:00:28]} 0-1


[Site "https://www.chess.com"]

[Event "Titled Tuesday Blitz April 12 Late 2022"]
[White "Akrakan"]
[Black "Riehle, Marco"]
[BlackFideId "12904392"]
[WhiteElo "2172"]
[BlackElo "2462"]
[Result "0-1"]
[Round "04"]
[TimeControl "180+1"]
[Date "2022.04.13"]
[WhiteClock "0:00:19"]
[BlackClock "0:01:13"]

1. e4 {[%clk 0:03:00]}  e5 {[%clk 0:02:59]} 2. Nf3 {[%clk 0:03:00]}  Nf6 {[%clk 0:02:56]} 3. Nxe5 {[%clk 0:02:58]}  Nxe4 {[%clk 0:02:56]} 4. d4 {[%clk 0:02:58]}  d6 {[%clk 0:02:54]} 5. Nf3 {[%clk 0:02:57]}  d5 {[%clk 0:02:54]} 6. Bd3 {[%clk 0:02:57]}  Bd6 {[%clk 0:02:53]} 7. O-O {[%clk 0:02:57]}  O-O {[%clk 0:02:53]} 8. c4 {[%clk 0:02:56]}  c6 {[%clk 0:02:53]} 9. Nc3 {[%clk 0:02:56]}  Nxc3 {[%clk 0:02:53]} 10. bxc3 {[%clk 0:02:56]}  dxc4 {[%clk 0:02:53]} 11. Bxc4 {[%clk 0:02:56]}  Bg4 {[%clk 0:02:53]} 12. h3 {[%clk 0:02:55]}  Bh5 {[%clk 0:02:52]} 13. Re1 {[%clk 0:02:44]}  Nd7 {[%clk 0:02:44]} 14. Qd3 {[%clk 0:02:28]}  Bg6 {[%clk 0:02:27]} 15. Qe2 {[%clk 0:02:20]}  b5 {[%clk 0:02:25]} 16. Bd3 {[%clk 0:02:19]}  Nf6 {[%clk 0:02:23]} 17. Bxg6 {[%clk 0:02:17]}  hxg6 {[%clk 0:02:24]} 18. Bg5 {[%clk 0:02:12]}  Qa5 {[%clk 0:02:21]} 19. Qc2 {[%clk 0:02:10]}  Nd5 {[%clk 0:02:17]} 20. Bd2 {[%clk 0:02:06]}  Qc7 {[%clk 0:02:13]} 21. Ne5 {[%clk 0:02:04]}  Rfe8 {[%clk 0:02:12]} 22. c4 {[%clk 0:01:57]}  Bxe5 {[%clk 0:02:07]} 23. dxe5 {[%clk 0:01:50]}  bxc4 {[%clk 0:02:03]} 24. Qxc4 {[%clk 0:01:49]}  Rxe5 {[%clk 0:02:03]} 25. Rac1 {[%clk 0:01:40]}  Rxe1+ {[%clk 0:02:00]} 26. Bxe1 {[%clk 0:01:40]}  Re8 {[%clk 0:01:55]} 27. Bd2 {[%clk 0:01:30]}  Qd7 {[%clk 0:01:49]} 28. Qxc6 {[%clk 0:01:27]}  Qxc6 {[%clk 0:01:50]} 29. Rxc6 {[%clk 0:01:27]}  Re2 {[%clk 0:01:49]} 30. Be3 {[%clk 0:01:17]}  Nxe3 {[%clk 0:01:45]} 31. fxe3 {[%clk 0:01:17]}  Rxa2 {[%clk 0:01:45]} 32. Rc8+ {[%clk 0:00:54]}  Kh7 {[%clk 0:01:44]} 33. Ra8 {[%clk 0:00:55]}  g5 {[%clk 0:01:43]} 34. Kh2 {[%clk 0:00:52]}  Kg6 {[%clk 0:01:41]} 35. Kg3 {[%clk 0:00:53]}  f5 {[%clk 0:01:39]} 36. Kf3 {[%clk 0:00:48]}  Ra3 {[%clk 0:01:39]} 37. g3 {[%clk 0:00:44]}  Kf7 {[%clk 0:01:29]} 38. Rc8 {[%clk 0:00:43]}  g6 {[%clk 0:01:28]} 39. Rc6 {[%clk 0:00:39]}  Kg7 {[%clk 0:01:25]} 40. Rd6 {[%clk 0:00:39]}  Kh6 {[%clk 0:01:24]} 41. Rd8 {[%clk 0:00:36]}  Ra4 {[%clk 0:01:22]} 42. Rh8+ {[%clk 0:00:31]}  Kg7 {[%clk 0:01:22]} 43. Rc8 {[%clk 0:00:29]}  Ra6 {[%clk 0:01:22]} 44. Rc7+ {[%clk 0:00:28]}  Kh6 {[%clk 0:01:22]} 45. Rc8 {[%clk 0:00:29]}  Rb6 {[%clk 0:01:20]} 46. Rc7 {[%clk 0:00:28]}  a6 {[%clk 0:01:20]} 47. Ra7 {[%clk 0:00:28]}  Re6 {[%clk 0:01:19]} 48. Ra8 {[%clk 0:00:28]}  Kg7 {[%clk 0:01:19]} 49. Ra7+ {[%clk 0:00:28]}  Kf6 {[%clk 0:01:18]} 50. Ra8 {[%clk 0:00:28]}  Ke5 {[%clk 0:01:18]} 51. Ra7 {[%clk 0:00:28]}  Kd5 {[%clk 0:01:18]} 52. Rc7 {[%clk 0:00:25]}  Rc6 {[%clk 0:01:16]} 53. Rd7+ {[%clk 0:00:20]}  Kc5 {[%clk 0:01:14]} 54. Ra7 {[%clk 0:00:20]}  Kb5 {[%clk 0:01:14]} 55. h4 {[%clk 0:00:20]}  gxh4 {[%clk 0:01:13]} 56. gxh4 {[%clk 0:00:20]}  a5 {[%clk 0:01:14]} 57. Kf4 {[%clk 0:00:20]}  a4 {[%clk 0:01:14]} 58. Kg5 {[%clk 0:00:19]}  Ra6 {[%clk 0:01:13]} 59. Rb7+ {[%clk 0:00:18]}  Kc4 {[%clk 0:01:14]} 60. Rc7+ {[%clk 0:00:19]}  Kd3 {[%clk 0:01:13]} 61. Re7 {[%clk 0:00:19]}  a3 {[%clk 0:01:13]} 0-1


[Site "https://www.chess.com"]

[Event "Titled Tuesday Blitz April 12 Late 2022"]
[White "Ashiev, Eduard"]
[Black "Dahlgren, James Allen"]
[WhiteFideId "4130090"]
[BlackFideId "22256873"]
[WhiteElo "2004"]
[BlackElo "2101"]
[Result "1-0"]
[Round "04"]
[TimeControl "180+1"]
[Date "2022.04.13"]
[WhiteClock "0:02:24"]
[BlackClock "0:02:02"]

1. d4 {[%clk 0:03:00]}  e6 {[%clk 0:02:54]} 2. e4 {[%clk 0:03:00]}  c5 {[%clk 0:02:42]} 3. d5 {[%clk 0:02:57]}  exd5 {[%clk 0:02:41]} 4. exd5 {[%clk 0:02:57]}  f5 {[%clk 0:02:41]} 5. c4 {[%clk 0:02:56]}  Nf6 {[%clk 0:02:41]} 6. Nc3 {[%clk 0:02:56]}  d6 {[%clk 0:02:41]} 7. Bd3 {[%clk 0:02:56]}  Be7 {[%clk 0:02:41]} 8. Nge2 {[%clk 0:02:55]}  O-O {[%clk 0:02:40]} 9. O-O {[%clk 0:02:55]}  Na6 {[%clk 0:02:28]} 10. Re1 {[%clk 0:02:52]}  Nc7 {[%clk 0:02:23]} 11. a4 {[%clk 0:02:49]}  Bd7 {[%clk 0:02:17]} 12. Nf4 {[%clk 0:02:42]}  h6 {[%clk 0:02:04]} 13. Nb5 {[%clk 0:02:26]}  a6 {[%clk 0:02:02]} 14. Nxc7 {[%clk 0:02:24]} 1-0


[Site "https://www.chess.com"]

[Event "Titled Tuesday Blitz April 12 Late 2022"]
[White "Bachmann, Axel"]
[Black "Prado, Alexandra"]
[WhiteFideId "3700488"]
[BlackFideId "3301346"]
[WhiteElo "2587"]
[BlackElo "1678"]
[Result "1-0"]
[Round "04"]
[TimeControl "180+1"]
[Date "2022.04.13"]
[WhiteClock "0:01:14"]
[BlackClock "0:00:12"]

1. d4 {[%clk 0:03:00]}  Nf6 {[%clk 0:02:57]} 2. g3 {[%clk 0:03:01]}  g6 {[%clk 0:02:57]} 3. Bg2 {[%clk 0:03:01]}  Bg7 {[%clk 0:02:58]} 4. e4 {[%clk 0:03:02]}  d6 {[%clk 0:02:56]} 5. Ne2 {[%clk 0:03:02]}  O-O {[%clk 0:02:57]} 6. O-O {[%clk 0:03:03]}  Nc6 {[%clk 0:02:57]} 7. Nbc3 {[%clk 0:03:03]}  a6 {[%clk 0:02:50]} 8. a4 {[%clk 0:03:00]}  Rb8 {[%clk 0:02:43]} 9. a5 {[%clk 0:02:57]}  Bg4 {[%clk 0:02:33]} 10. f3 {[%clk 0:02:48]}  Bd7 {[%clk 0:02:25]} 11. h3 {[%clk 0:02:48]}  Qc8 {[%clk 0:02:24]} 12. Kh2 {[%clk 0:02:48]}  h5 {[%clk 0:02:17]} 13. Bg5 {[%clk 0:02:41]}  Nh7 {[%clk 0:02:13]} 14. Be3 {[%clk 0:02:41]}  f5 {[%clk 0:02:03]} 15. Qd2 {[%clk 0:02:31]}  e5 {[%clk 0:01:44]} 16. Nd5 {[%clk 0:02:23]}  Nf6 {[%clk 0:01:08]} 17. c4 {[%clk 0:01:48]}  h4 {[%clk 0:00:58]} 18. dxe5 {[%clk 0:01:43]}  hxg3+ {[%clk 0:00:42]} 19. Nxg3 {[%clk 0:01:42]}  dxe5 {[%clk 0:00:40]} 20. f4 {[%clk 0:01:22]}  fxe4 {[%clk 0:00:31]} 21. fxe5 {[%clk 0:01:21]}  Nxe5 {[%clk 0:00:20]} 22. Ne7+ {[%clk 0:01:21]}  Kh7 {[%clk 0:00:17]} 23. Nxc8 {[%clk 0:01:21]}  Rbxc8 {[%clk 0:00:17]} 24. Nxe4 {[%clk 0:01:17]}  Nxe4 {[%clk 0:00:15]} 25. Bxe4 {[%clk 0:01:16]}  Rf7 {[%clk 0:00:12]} 26. Rxf7 {[%clk 0:01:14]} 1-0


[Site "https://www.chess.com"]

[Event "Titled Tuesday Blitz April 12 Late 2022"]
[White "Barria Zuniga, Daniel"]
[Black "Olcayoz, Alper"]
[WhiteFideId "3400816"]
[BlackFideId "6300405"]
[WhiteElo "2414"]
[BlackElo "2255"]
[Result "0-1"]
[Round "04"]
[TimeControl "180+1"]
[Date "2022.04.13"]
[WhiteClock "0:00:03"]
[BlackClock "0:00:39"]

1. d4 {[%clk 0:02:47]}  Nf6 {[%clk 0:02:58]} 2. c4 {[%clk 0:02:42]}  e5 {[%clk 0:02:57]} 3. dxe5 {[%clk 0:02:39]}  Ne4 {[%clk 0:02:57]} 4. a3 {[%clk 0:02:35]}  d6 {[%clk 0:02:56]} 5. Qc2 {[%clk 0:02:33]}  d5 {[%clk 0:02:56]} 6. e3 {[%clk 0:02:28]}  Nc6 {[%clk 0:02:47]} 7. Nf3 {[%clk 0:02:25]}  Bg4 {[%clk 0:02:40]} 8. cxd5 {[%clk 0:02:22]}  Qxd5 {[%clk 0:02:39]} 9. Bc4 {[%clk 0:02:23]}  Qa5+ {[%clk 0:02:35]} 10. b4 {[%clk 0:02:23]}  Bxb4+ {[%clk 0:02:10]} 11. axb4 {[%clk 0:02:22]}  Qxa1 {[%clk 0:02:11]} 12. Qxe4 {[%clk 0:02:20]}  Bxf3 {[%clk 0:02:08]} 13. gxf3 {[%clk 0:02:19]}  O-O-O {[%clk 0:01:59]} 14. O-O {[%clk 0:02:09]}  Qxe5 {[%clk 0:01:57]} 15. Bxf7 {[%clk 0:02:02]}  Qxe4 {[%clk 0:01:49]} 16. fxe4 {[%clk 0:02:03]}  Nxb4 {[%clk 0:01:48]} 17. e5 {[%clk 0:01:46]}  Kd7 {[%clk 0:01:37]} 18. e6+ {[%clk 0:01:45]}  Ke7 {[%clk 0:01:37]} 19. Ba3 {[%clk 0:01:46]}  a5 {[%clk 0:01:36]} 20. Nc3 {[%clk 0:01:46]}  Rd3 {[%clk 0:01:30]} 21. Rc1 {[%clk 0:01:37]}  Rhd8 {[%clk 0:01:25]} 22. Kg2 {[%clk 0:01:10]}  c6 {[%clk 0:01:17]} 23. Kf3 {[%clk 0:01:04]}  b5 {[%clk 0:01:16]} 24. h4 {[%clk 0:00:58]}  g6 {[%clk 0:01:11]} 25. Bb2 {[%clk 0:00:46]}  Rd2 {[%clk 0:01:06]} 26. Ba1 {[%clk 0:00:45]}  Nd3 {[%clk 0:00:57]} 27. Rf1 {[%clk 0:00:38]}  Ne5+ {[%clk 0:00:57]} 28. Kg3 {[%clk 0:00:32]}  Nxf7 {[%clk 0:00:58]} 29. exf7 {[%clk 0:00:33]}  Kxf7 {[%clk 0:00:58]} 30. Ne4 {[%clk 0:00:33]}  Rd1 {[%clk 0:00:58]} 31. Rxd1 {[%clk 0:00:25]}  Rxd1 {[%clk 0:00:59]} 32. Bd4 {[%clk 0:00:25]}  a4 {[%clk 0:00:56]} 33. Ng5+ {[%clk 0:00:25]}  Kg8 {[%clk 0:00:55]} 34. Ne4 {[%clk 0:00:15]}  b4 {[%clk 0:00:54]} 35. Nc5 {[%clk 0:00:14]}  a3 {[%clk 0:00:49]} 36. Kf4 {[%clk 0:00:11]}  Rb1 {[%clk 0:00:40]} 37. Ke5 {[%clk 0:00:07]}  b3 {[%clk 0:00:40]} 38. Nxb3 {[%clk 0:00:03]}  Rxb3 {[%clk 0:00:41]} 39. Kd6 {[%clk 0:00:04]}  Rd3 {[%clk 0:00:39]} 40. Kxc6 {[%clk 0:00:02]}  Rxd4 {[%clk 0:00:38]} 41. exd4 {[%clk 0:00:03]}  a2 {[%clk 0:00:39]} 0-1


[Site "https://www.chess.com"]

[Event "Titled Tuesday Blitz April 12 Late 2022"]
[White "Bibasa, Bob"]
[Black "Senthilkumar, Pranav"]
[WhiteFideId "10000240"]
[BlackFideId "2083477"]
[WhiteElo "2056"]
[BlackElo "2389"]
[Result "1/2-1/2"]
[Round "04"]
[TimeControl "180+1"]
[Date "2022.04.13"]
[WhiteClock "0:00:21"]
[BlackClock "0:00:09"]

1. e4 {[%clk 0:03:00]}  e5 {[%clk 0:02:59]} 2. Nf3 {[%clk 0:03:00]}  Nc6 {[%clk 0:02:59]} 3. Bc4 {[%clk 0:02:57]}  Nf6 {[%clk 0:02:59]} 4. O-O {[%clk 0:02:56]}  Bc5 {[%clk 0:02:59]} 5. d3 {[%clk 0:02:55]}  d6 {[%clk 0:02:59]} 6. c3 {[%clk 0:02:55]}  h6 {[%clk 0:02:59]} 7. h3 {[%clk 0:02:55]}  a6 {[%clk 0:02:56]} 8. a4 {[%clk 0:02:54]}  g5 {[%clk 0:02:56]} 9. d4 {[%clk 0:02:53]}  Ba7 {[%clk 0:02:53]} 10. dxe5 {[%clk 0:02:53]}  dxe5 {[%clk 0:02:52]} 11. Qxd8+ {[%clk 0:02:53]}  Nxd8 {[%clk 0:02:52]} 12. Nxe5 {[%clk 0:02:53]}  Nxe4 {[%clk 0:02:53]} 13. Nd2 {[%clk 0:02:47]}  Nxd2 {[%clk 0:02:47]} 14. Bxd2 {[%clk 0:02:47]}  Be6 {[%clk 0:02:47]} 15. Bxe6 {[%clk 0:02:46]}  Nxe6 {[%clk 0:02:48]} 16. Rfe1 {[%clk 0:02:44]}  O-O {[%clk 0:02:46]} 17. Rad1 {[%clk 0:02:40]}  Rad8 {[%clk 0:02:45]} 18. Bc1 {[%clk 0:02:26]}  Kg7 {[%clk 0:02:39]} 19. b3 {[%clk 0:02:11]}  c5 {[%clk 0:02:31]} 20. Be3 {[%clk 0:02:10]}  Bb8 {[%clk 0:02:29]} 21. Nd7 {[%clk 0:02:09]}  Rfe8 {[%clk 0:02:24]} 22. Nxb8 {[%clk 0:02:04]}  Rxb8 {[%clk 0:02:23]} 23. Rd7 {[%clk 0:02:04]}  Red8 {[%clk 0:02:22]} 24. Red1 {[%clk 0:02:04]}  b6 {[%clk 0:02:16]} 25. Rxd8 {[%clk 0:01:54]}  Rxd8 {[%clk 0:02:15]} 26. Rxd8 {[%clk 0:01:54]}  Nxd8 {[%clk 0:02:16]} 27. a5 {[%clk 0:01:54]}  c4 {[%clk 0:02:00]} 28. axb6 {[%clk 0:01:05]}  cxb3 {[%clk 0:01:58]} 29. c4 {[%clk 0:01:05]}  Kf6 {[%clk 0:01:56]} 30. Bd4+ {[%clk 0:00:58]}  Ke6 {[%clk 0:01:56]} 31. Kf1 {[%clk 0:00:58]}  a5 {[%clk 0:01:55]} 32. Ke2 {[%clk 0:00:58]}  a4 {[%clk 0:01:56]} 33. Kd3 {[%clk 0:00:58]}  a3 {[%clk 0:01:48]} 34. Kc3 {[%clk 0:00:51]}  b2 {[%clk 0:01:47]} 35. Kc2 {[%clk 0:00:52]}  f5 {[%clk 0:01:37]} 36. Bc5 {[%clk 0:00:50]}  Kd7 {[%clk 0:01:28]} 37. Bxa3 {[%clk 0:00:50]}  Kc6 {[%clk 0:01:29]} 38. c5 {[%clk 0:00:50]}  g4 {[%clk 0:01:27]} 39. Kxb2 {[%clk 0:00:47]}  gxh3 {[%clk 0:01:27]} 40. gxh3 {[%clk 0:00:48]}  Ne6 {[%clk 0:01:24]} 41. Kc3 {[%clk 0:00:48]}  Nf4 {[%clk 0:01:23]} 42. h4 {[%clk 0:00:44]}  h5 {[%clk 0:01:19]} 43. Kd4 {[%clk 0:00:39]}  Ng2 {[%clk 0:01:17]} 44. Ke5 {[%clk 0:00:35]}  Nxh4 {[%clk 0:01:17]} 45. Kf4 {[%clk 0:00:35]}  Kb7 {[%clk 0:01:11]} 46. Kg5 {[%clk 0:00:32]}  Nf3+ {[%clk 0:00:57]} 47. Kxh5 {[%clk 0:00:31]}  Nd4 {[%clk 0:00:56]} 48. Bb2 {[%clk 0:00:30]}  Nb3 {[%clk 0:00:52]} 49. Ba3 {[%clk 0:00:28]}  Nd2 {[%clk 0:00:52]} 50. f4 {[%clk 0:00:28]}  Nc4 {[%clk 0:00:51]} 51. Kg6 {[%clk 0:00:27]}  Nxa3 {[%clk 0:00:32]} 52. Kxf5 {[%clk 0:00:27]}  Nb5 {[%clk 0:00:25]} 53. Ke5 {[%clk 0:00:26]}  Nc3 {[%clk 0:00:17]} 54. f5 {[%clk 0:00:26]}  Na4 {[%clk 0:00:15]} 55. Kd4 {[%clk 0:00:23]}  Kc6 {[%clk 0:00:15]} 56. f6 {[%clk 0:00:22]}  Nxc5 {[%clk 0:00:15]} 57. b7 {[%clk 0:00:19]}  Ne6+ {[%clk 0:00:07]} 58. Ke5 {[%clk 0:00:19]}  Nf8 {[%clk 0:00:07]} 59. b8=Q {[%clk 0:00:19]}  Nd7+ {[%clk 0:00:07]} 60. Ke6 {[%clk 0:00:20]}  Nxb8 {[%clk 0:00:07]} 61. f7 {[%clk 0:00:20]}  Nd7 {[%clk 0:00:08]} 62. Ke7 {[%clk 0:00:21]}  Kc7 {[%clk 0:00:08]} 63. Ke8 {[%clk 0:00:21]}  Kc8 {[%clk 0:00:08]} 64. Ke7 {[%clk 0:00:21]}  Kc7 {[%clk 0:00:09]} 65. f8=Q {[%clk 0:00:21]}  Nxf8 {[%clk 0:00:09]} 1/2-1/2


[Site "https://www.chess.com"]

[Event "Titled Tuesday Blitz April 12 Late 2022"]
[White "Bilych, Olexiy"]
[Black "Silvestre, Christian"]
[WhiteFideId "14156504"]
[BlackFideId "30956269"]
[WhiteElo "2176"]
[BlackElo "2426"]
[Result "1-0"]
[Round "04"]
[TimeControl "180+1"]
[Date "2022.04.13"]
[WhiteClock "0:00:18"]
[BlackClock "0:00:07"]

1. e4 {[%clk 0:03:00]}  c5 {[%clk 0:02:55]} 2. Nc3 {[%clk 0:02:57]}  Nc6 {[%clk 0:02:48]} 3. Nge2 {[%clk 0:02:54]}  g6 {[%clk 0:02:47]} 4. d4 {[%clk 0:02:53]}  cxd4 {[%clk 0:02:47]} 5. Nxd4 {[%clk 0:02:54]}  Bg7 {[%clk 0:02:47]} 6. Be3 {[%clk 0:02:54]}  Nf6 {[%clk 0:02:47]} 7. Bc4 {[%clk 0:02:55]}  O-O {[%clk 0:02:47]} 8. Bb3 {[%clk 0:02:54]}  d5 {[%clk 0:02:45]} 9. exd5 {[%clk 0:02:51]}  Na5 {[%clk 0:02:44]} 10. O-O {[%clk 0:02:43]}  Nxb3 {[%clk 0:02:31]} 11. Nxb3 {[%clk 0:02:42]}  b6 {[%clk 0:02:31]} 12. Qd3 {[%clk 0:02:12]}  Bb7 {[%clk 0:01:45]} 13. Rad1 {[%clk 0:02:11]}  Rc8 {[%clk 0:01:40]} 14. d6 {[%clk 0:01:40]}  e6 {[%clk 0:01:35]} 15. Bg5 {[%clk 0:01:29]}  h6 {[%clk 0:01:29]} 16. Bh4 {[%clk 0:01:29]}  g5 {[%clk 0:01:23]} 17. Bg3 {[%clk 0:01:29]}  Nd5 {[%clk 0:01:22]} 18. Nxd5 {[%clk 0:01:02]}  Bxd5 {[%clk 0:01:23]} 19. d7 {[%clk 0:01:02]}  Rc4 {[%clk 0:00:51]} 20. Bd6 {[%clk 0:00:57]}  Qxd7 {[%clk 0:00:32]} 21. Bxf8 {[%clk 0:00:56]}  Qc6 {[%clk 0:00:17]} 22. Bxg7 {[%clk 0:00:55]}  Bxg2 {[%clk 0:00:16]} 23. Bc3 {[%clk 0:00:47]}  Rg4 {[%clk 0:00:13]} 24. Qd8+ {[%clk 0:00:47]}  Kh7 {[%clk 0:00:12]} 25. Qh8+ {[%clk 0:00:43]}  Kg6 {[%clk 0:00:12]} 26. Qf6+ {[%clk 0:00:24]}  Kh5 {[%clk 0:00:12]} 27. Qxf7+ {[%clk 0:00:20]}  Kh4 {[%clk 0:00:10]} 28. Be5 {[%clk 0:00:19]}  Bh3+ {[%clk 0:00:07]} 29. Bg3+ {[%clk 0:00:19]}  Rxg3+ {[%clk 0:00:06]} 30. fxg3+ {[%clk 0:00:18]}  Kg4 {[%clk 0:00:07]} 31. Qf2 {[%clk 0:00:16]}  Bxf1 {[%clk 0:00:05]} 32. Rxf1 {[%clk 0:00:17]}  Qe4 {[%clk 0:00:05]} 33. Qd4 {[%clk 0:00:16]}  Qxd4+ {[%clk 0:00:04]} 34. Nxd4 {[%clk 0:00:17]}  e5 {[%clk 0:00:05]} 35. Nf5 {[%clk 0:00:17]}  e4 {[%clk 0:00:06]} 36. Ne3+ {[%clk 0:00:17]}  Kh3 {[%clk 0:00:06]} 37. Rf6 {[%clk 0:00:17]}  g4 {[%clk 0:00:07]} 38. Rxh6# {[%clk 0:00:18]} 1-0


[Site "https://www.chess.com"]